[Event "Snabb-SM för veteraner, 65+ 2019"]
[Site "Schackcentrum, Vegagatan 20, Gothenburg, Sweden"]
[Date "2019.10.05"]
[Round "1.1"]
[White "Wahlstrom, Lennart"]
[Black "Westergren, Bertil"]
[Result "1-0"]
[TimeControl "15 minutes + 10 seconds per move from move one"]
[WhiteFideId "1706829"]
[BlackFideId "1712012"]
[WhiteElo "2109"]
[BlackElo "1862"]

1. e4 {[%clk 00:15:15]} {[%emt 00:00:03]} c6 {[%clk 00:15:15]} {[%emt
00:00:06]} 2. d4 {[%clk 00:15:22]} {[%emt 00:00:03]} d5 {[%clk 00:15:23]}
{[%emt 00:00:02]} 3. exd5 {[%clk 00:15:26]} {[%emt 00:00:06]} cxd5 {[%clk
00:15:31]} {[%emt 00:00:02]} 4. c4 {[%clk 00:15:33]} {[%emt 00:00:03]} e6
{[%clk 00:15:22]} {[%emt 00:00:20]} 5. Nc3 {[%clk 00:15:33]} {[%emt 00:00:10]}
Nf6 {[%clk 00:15:29]} {[%emt 00:00:04]} 6. Nf3 {[%clk 00:15:36]} {[%emt
00:00:06]} dxc4 {[%clk 00:15:35]} {[%emt 00:00:05]} 7. Bxc4 {[%clk 00:15:41]}
{[%emt 00:00:05]} Be7 {[%clk 00:15:38]} {[%emt 00:00:07]} 8. O-O {[%clk
00:15:37]} {[%emt 00:00:14]} O-O {[%clk 00:15:44]} {[%emt 00:00:05]} 9. Re1
{[%clk 00:15:38]} {[%emt 00:00:08]} a6 {[%clk 00:15:34]} {[%emt 00:00:21]} 10.
Bg5 {[%clk 00:14:56]} {[%emt 00:00:51]} b5 {[%clk 00:15:27]} {[%emt 00:00:17]}
11. Bb3 {[%clk 00:14:36]} {[%emt 00:00:29]} Bb7 {[%clk 00:15:28]} {[%emt
00:00:10]} 12. Ne5 {[%clk 00:14:36]} {[%emt 00:00:10]} b4 {[%clk 00:13:07]}
{[%emt 00:02:31]} 13. Na4 {[%clk 00:13:02]} {[%emt 00:01:44]} Nd5 {[%clk
00:12:15]} {[%emt 00:01:02]} 14. Bxe7 {[%clk 00:13:02]} {[%emt 00:00:09]} Qxe7
{[%clk 00:12:06]} {[%emt 00:00:19]} 15. Nc5 {[%clk 00:13:06]} {[%emt 00:00:06]}
Rd8 {[%clk 00:11:34]} {[%emt 00:00:41]} 16. Nxb7 {[%clk 00:12:36]} {[%emt
00:00:41]} Qxb7 {[%clk 00:11:38]} {[%emt 00:00:06]} 17. Qf3 {[%clk 00:11:10]}
{[%emt 00:01:36]} Nc6 {[%clk 00:09:58]} {[%emt 00:01:51]} 18. Rad1 {[%clk
00:09:13]} {[%emt 00:02:06]} Rac8 {[%clk 00:09:24]} {[%emt 00:00:44]} 19. Re2
{[%clk 00:06:53]} {[%emt 00:02:29]} Nf6 {[%clk 00:09:00]} {[%emt 00:00:35]} 20.
Nxc6 {[%clk 00:06:28]} {[%emt 00:00:35]} Qxc6 {[%clk 00:08:58]} {[%emt
00:00:12]} 21. Qxc6 {[%clk 00:04:41]} {[%emt 00:01:57]} Rxc6 {[%clk 00:09:05]}
{[%emt 00:00:02]} 22. f3 {[%clk 00:04:21]} {[%emt 00:00:29]} Rcd6 {[%clk
00:09:03]} {[%emt 00:00:12]} 23. Red2 {[%clk 00:04:28]} {[%emt 00:00:03]} Nd5
{[%clk 00:09:07]} {[%emt 00:00:07]} 24. Kf2 {[%clk 00:04:31]} {[%emt 00:00:06]}
a5 {[%clk 00:09:07]} {[%emt 00:00:11]} 25. Rc2 {[%clk 00:04:22]} {[%emt
00:00:19]} Nb6 {[%clk 00:08:57]} {[%emt 00:00:20]} 26. a4 {[%clk 00:04:03]}
{[%emt 00:00:29]} g6 {[%clk 00:08:46]} {[%emt 00:00:21]} 27. Rc5 {[%clk
00:04:00]} {[%emt 00:00:13]} Rxd4 {[%clk 00:08:47]} {[%emt 00:00:09]} 28. Rxd4
{[%clk 00:04:06]} {[%emt 00:00:04]} Rxd4 {[%clk 00:08:55]} {[%emt 00:00:02]} 29.
Ke3 {[%clk 00:04:08]} {[%emt 00:00:07]} Rh4 {[%clk 00:07:36]} {[%emt 00:01:30]}
30. h3 {[%clk 00:04:15]} {[%emt 00:00:02]} Rh5 {[%clk 00:07:41]} {[%emt
00:00:05]} 31. Rxh5 {[%clk 00:04:06]} {[%emt 00:00:18]} gxh5 {[%clk 00:07:50]}
{[%emt 00:00:01]} 32. Kd4 {[%clk 00:04:12]} {[%emt 00:00:04]} Nd7 {[%clk
00:07:47]} {[%emt 00:00:13]} 33. Kc4 {[%clk 00:03:53]} {[%emt 00:00:29]} Ne5+
{[%clk 00:07:07]} {[%emt 00:00:50]} 34. Kb5 {[%clk 00:04:02]} {[%emt 00:00:02]}
Nd3 {[%clk 00:06:59]} {[%emt 00:00:18]} 35. Kxa5 {[%clk 00:04:07]} {[%emt
00:00:05]} Nxb2 {[%clk 00:07:02]} {[%emt 00:00:07]} 36. Kxb4 {[%clk 00:04:14]}
{[%emt 00:00:02]} Nxa4 {[%clk 00:06:54]} {[%emt 00:00:18]} 37. Bxa4 {[%clk
00:04:20]} {[%emt 00:00:04]} Kg7 {[%clk 00:07:03]} {[%emt 00:00:01]} 38. Kc4
{[%clk 00:04:19]} {[%emt 00:00:11]} Kf6 {[%clk 00:06:45]} {[%emt 00:00:28]} 39.
Kd4 {[%clk 00:04:27]} {[%emt 00:00:02]} Kf5 {[%clk 00:06:48]} {[%emt 00:00:07]}
40. Ke3 {[%clk 00:04:15]} {[%emt 00:00:22]} h4 {[%clk 00:06:21]} {[%emt
00:00:37]} 41. Bc2+ {[%clk 00:04:22]} {[%emt 00:00:03]} Kg5 {[%clk 00:06:20]}
{[%emt 00:00:11]} 42. Bxh7 {[%clk 00:04:29]} {[%emt 00:00:03]} f5 {[%clk
00:06:24]} {[%emt 00:00:07]} 43. Bg8 {[%clk 00:04:27]} {[%emt 00:00:11]} e5
{[%clk 00:06:32]} {[%emt 00:00:02]} 44. f4+ {[%clk 00:04:26]} {[%emt 00:00:11]}
exf4+ {[%clk 00:06:38]} {[%emt 00:00:04]} 45. Kf3 {[%clk 00:04:35]} {[%emt
00:00:01]} 1-0

[Event "Snabb-SM för veteraner, 65+ 2019"]
[Site "Schackcentrum, Vegagatan 20, Gothenburg, Sweden"]
[Date "2019.10.05"]
[Round "1.2"]
[White "Franzen, Thomas"]
[Black "Andersson, Kaj"]
[Result "0-1"]
[TimeControl "15 minutes + 10 seconds per move from move one"]
[WhiteFideId "1706039"]
[BlackFideId "1709860"]
[WhiteElo "1860"]
[BlackElo "2083"]

1. d4 {[%clk 00:15:16]} {[%emt 00:00:03]} d5 {[%clk 00:15:19]} {[%emt
00:00:02]} 2. Bf4 {[%clk 00:15:23]} {[%emt 00:00:03]} e6 {[%clk 00:15:26]}
{[%emt 00:00:03]} 3. Nf3 {[%clk 00:15:28]} {[%emt 00:00:06]} Bd6 {[%clk
00:15:34]} {[%emt 00:00:02]} 4. Bg3 {[%clk 00:15:34]} {[%emt 00:00:03]} Nf6
{[%clk 00:15:40]} {[%emt 00:00:04]} 5. e3 {[%clk 00:15:42]} {[%emt 00:00:03]}
O-O {[%clk 00:15:41]} {[%emt 00:00:08]} 6. Bd3 {[%clk 00:15:50]} {[%emt
00:00:02]} a6 {[%clk 00:15:44]} {[%emt 00:00:08]} 7. Nbd2 {[%clk 00:15:50]}
{[%emt 00:00:10]} b5 {[%clk 00:15:51]} {[%emt 00:00:03]} 8. Ne5 {[%clk
00:15:15]} {[%emt 00:00:45]} Bb7 {[%clk 00:15:47]} {[%emt 00:00:14]} 9. O-O
{[%clk 00:15:18]} {[%emt 00:00:07]} Nbd7 {[%clk 00:15:30]} {[%emt 00:00:26]} 10.
f4 {[%clk 00:15:09]} {[%emt 00:00:20]} Ne4 {[%clk 00:15:24]} {[%emt 00:00:16]}
11. Bxe4 {[%clk 00:13:22]} {[%emt 00:01:57]} dxe4 {[%clk 00:15:30]} {[%emt
00:00:03]} 12. Qg4 {[%clk 00:13:04]} {[%emt 00:00:28]} f5 {[%clk 00:14:55]}
{[%emt 00:00:45]} 13. Qh3 {[%clk 00:12:59]} {[%emt 00:00:16]} Nf6 {[%clk
00:14:16]} {[%emt 00:00:49]} 14. c4 {[%clk 00:12:32]} {[%emt 00:00:38]} Qe8
{[%clk 00:13:25]} {[%emt 00:01:00]} 15. Be1 {[%clk 00:10:59]} {[%emt 00:01:43]}
c5 {[%clk 00:13:00]} {[%emt 00:00:35]} 16. Rc1 {[%clk 00:10:46]} {[%emt
00:00:23]} cxd4 {[%clk 00:12:54]} {[%emt 00:00:16]} 17. exd4 {[%clk 00:10:54]}
{[%emt 00:00:03]} Rd8 {[%clk 00:12:27]} {[%emt 00:00:36]} 18. Nb3 {[%clk
00:09:11]} {[%emt 00:01:54]} bxc4 {[%clk 00:10:41]} {[%emt 00:01:56]} 19. Nxc4
{[%clk 00:09:03]} {[%emt 00:00:18]} Be7 {[%clk 00:09:59]} {[%emt 00:00:51]} 20.
Ne5 {[%clk 00:07:48]} {[%emt 00:01:25]} Nd5 {[%clk 00:09:37]} {[%emt 00:00:31]}
21. Nc5 {[%clk 00:07:30]} {[%emt 00:00:28]} Bc8 {[%clk 00:09:12]} {[%emt
00:00:35]} 22. Ba5 {[%clk 00:06:56]} {[%emt 00:00:45]} Rd6 {[%clk 00:08:46]}
{[%emt 00:00:36]} 23. Nc4 {[%clk 00:06:15]} {[%emt 00:00:51]} Rc6 {[%clk
00:08:34]} {[%emt 00:00:22]} 24. Ne5 {[%clk 00:06:07]} {[%emt 00:00:19]} Rxc5
{[%clk 00:07:11]} {[%emt 00:01:33]} 25. dxc5 {[%clk 00:06:12]} {[%emt
00:00:05]} Qb5 {[%clk 00:07:10]} {[%emt 00:00:11]} 26. Qa3 {[%clk 00:05:25]}
{[%emt 00:00:58]} Bb7 {[%clk 00:05:05]} {[%emt 00:02:15]} 27. b4 {[%clk
00:05:25]} {[%emt 00:00:09]} Bc6 {[%clk 00:04:51]} {[%emt 00:00:24]} 28. Qb3
{[%clk 00:05:01]} {[%emt 00:00:34]} Rf6 {[%clk 00:04:07]} {[%emt 00:00:53]} 29.
Nxc6 {[%clk 00:04:14]} {[%emt 00:00:57]} Qxc6 {[%clk 00:04:16]} {[%emt
00:00:01]} 30. a4 {[%clk 00:04:20]} {[%emt 00:00:04]} Rg6 {[%clk 00:04:06]}
{[%emt 00:00:20]} 31. Kh1 {[%clk 00:03:47]} {[%emt 00:00:43]} e3 {[%clk
00:04:13]} {[%emt 00:00:03]} 32. Qc2 {[%clk 00:03:20]} {[%emt 00:00:35]} Nc3
{[%clk 00:03:20]} {[%emt 00:01:06]} 33. Rf3 {[%clk 00:03:12]} {[%emt 00:00:18]}
Bf6 {[%clk 00:02:52]} {[%emt 00:00:38]} 34. Rxe3 {[%clk 00:02:19]} {[%emt
00:01:02]} Ne4 {[%clk 00:02:44]} {[%emt 00:00:18]} 35. Rd1 {[%clk 00:02:11]}
{[%emt 00:00:19]} h5 {[%clk 00:02:49]} {[%emt 00:00:05]} 36. Bd8 {[%clk
00:02:11]} {[%emt 00:00:10]} h4 {[%clk 00:02:31]} {[%emt 00:00:27]} 37. Bxf6
{[%clk 00:02:16]} {[%emt 00:00:06]} Nxf6 {[%clk 00:02:37]} {[%emt 00:00:05]} 38.
Rd6 {[%clk 00:02:19]} {[%emt 00:00:06]} Qb7 {[%clk 00:02:33]} {[%emt 00:00:14]}
39. Rb6 {[%clk 00:02:15]} {[%emt 00:00:14]} Qd5 {[%clk 00:02:34]} {[%emt
00:00:08]} 40. h3 {[%clk 00:02:16]} {[%emt 00:00:08]} Ne4 {[%clk 00:02:24]}
{[%emt 00:00:20]} 41. Rxa6 {[%clk 00:02:03]} {[%emt 00:00:24]} Qd4 {[%clk
00:02:26]} {[%emt 00:00:07]} 42. Re1 {[%clk 00:01:43]} {[%emt 00:00:21]} Nf2+
{[%clk 00:02:23]} {[%emt 00:00:23]} 43. Kh2 {[%clk 00:01:51]} {[%emt 00:00:01]}
Qxf4+ {[%clk 00:02:30]} {[%emt 00:00:04]} 44. Kg1 {[%clk 00:01:56]} {[%emt
00:00:05]} Nxh3+ {[%clk 00:02:26]} {[%emt 00:00:14]} 45. Kh1 {[%clk 00:02:04]}
{[%emt 00:00:01]} Nf2+ {[%clk 00:02:17]} {[%emt 00:00:19]} 46. Kg1 {[%clk
00:02:14]} {[%emt 00:00:01]} h3 {[%clk 00:02:22]} {[%emt 00:00:05]} 47. Qxf2
{[%clk 00:02:03]} {[%emt 00:00:21]} h2+ {[%clk 00:00:50]} {[%emt 00:01:24]} 0-1

[Event "Snabb-SM för veteraner, 65+ 2019"]
[Site "Schackcentrum, Vegagatan 20, Gothenburg, Sweden"]
[Date "2019.10.05"]
[Round "1.3"]
[White "Dolata, Henryk"]
[Black "Nilsson, Weine"]
[Result "1-0"]
[TimeControl "15 minutes + 10 seconds per move from move one"]
[WhiteFideId "1709046"]
[BlackFideId "1716727"]
[WhiteElo "2064"]
[BlackElo "1847"]

1. e4 {[%clk 00:15:17]} {[%emt 00:00:02]} c5 {[%clk 00:15:14]} {[%emt
00:00:06]} 2. c3 {[%clk 00:15:26]} {[%emt 00:00:02]} Nf6 {[%clk 00:15:21]}
{[%emt 00:00:03]} 3. e5 {[%clk 00:15:35]} {[%emt 00:00:01]} Nd5 {[%clk
00:15:30]} {[%emt 00:00:02]} 4. d4 {[%clk 00:15:43]} {[%emt 00:00:02]} e6
{[%clk 00:15:17]} {[%emt 00:00:23]} 5. Nf3 {[%clk 00:15:50]} {[%emt 00:00:03]}
d6 {[%clk 00:15:14]} {[%emt 00:00:13]} 6. a3 {[%clk 00:13:57]} {[%emt
00:02:03]} dxe5 {[%clk 00:14:43]} {[%emt 00:00:41]} 7. dxe5 {[%clk 00:14:04]}
{[%emt 00:00:03]} Be7 {[%clk 00:14:28]} {[%emt 00:00:25]} 8. Bd3 {[%clk
00:14:07]} {[%emt 00:00:06]} Nc6 {[%clk 00:14:19]} {[%emt 00:00:20]} 9. O-O
{[%clk 00:14:11]} {[%emt 00:00:06]} O-O {[%clk 00:14:27]} {[%emt 00:00:02]} 10.
Qe2 {[%clk 00:12:48]} {[%emt 00:01:33]} a6 {[%clk 00:14:18]} {[%emt 00:00:19]}
11. Rd1 {[%clk 00:12:31]} {[%emt 00:00:26]} Qc7 {[%clk 00:14:03]} {[%emt
00:00:25]} 12. c4 {[%clk 00:11:52]} {[%emt 00:00:49]} Nb6 {[%clk 00:14:05]}
{[%emt 00:00:06]} 13. Qe4 {[%clk 00:11:26]} {[%emt 00:00:36]} g6 {[%clk
00:14:12]} {[%emt 00:00:04]} 14. Nc3 {[%clk 00:08:55]} {[%emt 00:02:42]} Na5
{[%clk 00:13:23]} {[%emt 00:00:59]} 15. Bg5 {[%clk 00:08:44]} {[%emt 00:00:19]}
Bxg5 {[%clk 00:12:44]} {[%emt 00:00:50]} 16. Nxg5 {[%clk 00:08:53]} {[%emt
00:00:01]} Qe7 {[%clk 00:12:33]} {[%emt 00:00:21]} 17. Qh4 {[%clk 00:07:25]}
{[%emt 00:01:38]} h5 {[%clk 00:10:44]} {[%emt 00:01:59]} 18. Nce4 {[%clk
00:07:31]} {[%emt 00:00:04]} Kg7 {[%clk 00:09:52]} {[%emt 00:01:02]} 19. Rac1
{[%clk 00:05:00]} {[%emt 00:02:41]} Nd7 {[%clk 00:08:17]} {[%emt 00:01:46]} 20.
f4 {[%clk 00:04:41]} {[%emt 00:00:29]} Nb3 {[%clk 00:07:27]} {[%emt 00:01:00]}
21. Rc3 {[%clk 00:04:48]} {[%emt 00:00:02]} Nd4 {[%clk 00:07:27]} {[%emt
00:00:10]} 22. Bf1 {[%clk 00:03:07]} {[%emt 00:01:51]} Nf5 {[%clk 00:06:29]}
{[%emt 00:01:09]} 23. Qf2 {[%clk 00:03:17]} b6 {[%clk 00:05:27]} {[%emt
00:01:12]} 24. Rcd3 {[%clk 00:03:22]} {[%emt 00:00:04]} b5 {[%clk 00:03:54]}
{[%emt 00:01:43]} 25. cxb5 {[%clk 00:03:01]} {[%emt 00:00:31]} axb5 {[%clk
00:03:52]} {[%emt 00:00:12]} 26. Nd6 {[%clk 00:03:10]} {[%emt 00:00:02]} Nxe5
{[%clk 00:03:23]} {[%emt 00:00:39]} 27. fxe5 {[%clk 00:02:37]} {[%emt
00:00:42]} Qxg5 {[%clk 00:03:24]} {[%emt 00:00:09]} 28. Qxc5 {[%clk 00:02:40]}
{[%emt 00:00:08]} Nxd6 {[%clk 00:02:49]} {[%emt 00:00:45]} 29. Rxd6 {[%clk
00:02:31]} {[%emt 00:00:19]} Bb7 {[%clk 00:02:56]} {[%emt 00:00:03]} 30. Qxb5
{[%clk 00:02:30]} {[%emt 00:00:11]} Bd5 {[%clk 00:02:42]} {[%emt 00:00:24]} 31.
Qe2 {[%clk 00:02:39]} {[%emt 00:00:02]} Rab8 {[%clk 00:02:43]} {[%emt
00:00:08]} 32. b4 {[%clk 00:02:46]} {[%emt 00:00:03]} Rbc8 {[%clk 00:02:37]}
{[%emt 00:00:16]} 33. Rd4 {[%clk 00:02:17]} {[%emt 00:00:38]} Rc3 {[%clk
00:02:41]} {[%emt 00:00:06]} 34. Qd2 {[%clk 00:02:10]} {[%emt 00:00:17]} Re3
{[%clk 00:02:33]} {[%emt 00:00:18]} 35. b5 {[%clk 00:02:03]} {[%emt 00:00:18]}
Qxe5 {[%clk 00:02:12]} {[%emt 00:00:31]} 36. Rd7 {[%clk 00:02:11]} {[%emt
00:00:02]} Rxa3 {[%clk 00:02:06]} {[%emt 00:00:16]} 37. b6 {[%clk 00:02:11]}
{[%emt 00:00:11]} Rb8 {[%clk 00:02:08]} {[%emt 00:00:07]} 38. Rb4 {[%clk
00:02:19]} {[%emt 00:00:03]} Ra2 {[%clk 00:02:15]} {[%emt 00:00:04]} 39. Qf4
{[%clk 00:02:13]} {[%emt 00:00:16]} Qxf4 {[%clk 00:02:16]} {[%emt 00:00:08]} 40.
Rxf4 {[%clk 00:02:22]} Kh6 {[%clk 00:02:03]} {[%emt 00:00:23]} 41. Rfxf7 {[%clk
00:02:23]} {[%emt 00:00:09]} Kg5 {[%clk 00:01:58]} {[%emt 00:00:15]} 42. g3
{[%clk 00:02:28]} {[%emt 00:00:05]} Rxb6 {[%clk 00:01:59]} {[%emt 00:00:10]} 43.
Rf4 {[%clk 00:02:07]} {[%emt 00:00:30]} Rb1 {[%clk 00:02:01]} {[%emt 00:00:07]}
44. h4+ {[%clk 00:02:06]} {[%emt 00:00:12]} Kh6 {[%clk 00:02:05]} {[%emt
00:00:06]} 45. Rf2 {[%clk 00:01:43]} {[%emt 00:00:34]} Raa1 {[%clk 00:02:06]}
{[%emt 00:00:09]} 46. Rff7 {[%clk 00:01:40]} {[%emt 00:00:13]} g5 {[%clk
00:01:52]} {[%emt 00:00:23]} 47. Rf6# {[%clk 00:01:48]} {[%emt 00:00:02]} 1-0

[Event "Snabb-SM för veteraner, 65+ 2019"]
[Site "Schackcentrum, Vegagatan 20, Gothenburg, Sweden"]
[Date "2019.10.05"]
[Round "1.4"]
[White "Svensson, Soren"]
[Black "Stroem, Leif"]
[Result "0-1"]
[TimeControl "15 minutes + 10 seconds per move from move one"]
[WhiteFideId "1714937"]
[BlackFideId "1709410"]
[WhiteElo "1845"]
[BlackElo "2014"]

1. d4 {[%clk 00:15:16]} {[%emt 00:00:03]} g6 {[%clk 00:15:18]} {[%emt
00:00:03]} 2. c4 {[%clk 00:15:21]} {[%emt 00:00:05]} Bg7 {[%clk 00:15:27]}
{[%emt 00:00:01]} 3. Nc3 {[%clk 00:15:28]} {[%emt 00:00:03]} d6 {[%clk
00:15:34]} {[%emt 00:00:03]} 4. e4 {[%clk 00:15:34]} {[%emt 00:00:04]} e5
{[%clk 00:15:17]} {[%emt 00:00:27]} 5. d5 {[%clk 00:15:25]} {[%emt 00:00:18]}
f5 {[%clk 00:14:43]} {[%emt 00:00:44]} 6. Bd3 {[%clk 00:15:11]} {[%emt
00:00:24]} f4 {[%clk 00:13:25]} {[%emt 00:01:28]} 7. Rb1 {[%clk 00:12:56]}
{[%emt 00:02:25]} Nf6 {[%clk 00:10:36]} {[%emt 00:03:00]} 8. b4 {[%clk
00:12:42]} {[%emt 00:00:24]} Nbd7 {[%clk 00:09:18]} {[%emt 00:01:28]} 9. Nf3
{[%clk 00:12:17]} {[%emt 00:00:34]} O-O {[%clk 00:09:19]} {[%emt 00:00:09]} 10.
Qb3 {[%clk 00:11:39]} {[%emt 00:00:48]} h6 {[%clk 00:09:00]} {[%emt 00:00:30]}
11. h4 {[%clk 00:10:51]} {[%emt 00:00:57]} Rf7 {[%clk 00:08:09]} {[%emt
00:01:01]} 12. Bd2 {[%clk 00:10:26]} {[%emt 00:00:35]} a6 {[%clk 00:07:21]}
{[%emt 00:00:59]} 13. Na4 {[%clk 00:09:07]} {[%emt 00:01:28]} b6 {[%clk
00:07:18]} {[%emt 00:00:14]} 14. Rc1 {[%clk 00:08:55]} {[%emt 00:00:21]} Bf8
{[%clk 00:07:21]} {[%emt 00:00:07]} 15. Nc3 {[%clk 00:08:22]} {[%emt 00:00:43]}
Be7 {[%clk 00:07:23]} {[%emt 00:00:08]} 16. a4 {[%clk 00:08:24]} {[%emt
00:00:08]} Rg7 {[%clk 00:07:28]} {[%emt 00:00:06]} 17. Ra1 {[%clk 00:07:37]}
{[%emt 00:00:57]} g5 {[%clk 00:07:03]} {[%emt 00:00:35]} 18. hxg5 {[%clk
00:07:31]} {[%emt 00:00:16]} hxg5 {[%clk 00:07:12]} 19. O-O-O {[%clk 00:05:36]}
{[%emt 00:02:06]} Nh7 {[%clk 00:06:54]} {[%emt 00:00:28]} 20. g3 {[%clk
00:04:48]} {[%emt 00:00:58]} Ndf6 {[%clk 00:06:23]} {[%emt 00:00:41]} 21. Rdg1
{[%clk 00:03:56]} {[%emt 00:01:01]} Bg4 {[%clk 00:05:02]} {[%emt 00:01:32]} 22.
Nh2 {[%clk 00:03:52]} {[%emt 00:00:14]} Bd7 {[%clk 00:05:10]} {[%emt 00:00:02]}
23. g4 {[%clk 00:03:42]} {[%emt 00:00:19]} c5 {[%clk 00:04:44]} {[%emt
00:00:37]} 24. b5 {[%clk 00:01:52]} {[%emt 00:02:01]} axb5 {[%clk 00:04:51]}
{[%emt 00:00:04]} 25. cxb5 {[%clk 00:01:53]} {[%emt 00:00:08]} Qc7 {[%clk
00:04:56]} {[%emt 00:00:05]} 26. f3 {[%clk 00:01:39]} {[%emt 00:00:23]} Be8
{[%clk 00:03:52]} {[%emt 00:01:14]} 27. Nb1 {[%clk 00:01:30]} {[%emt 00:00:19]}
Qa7 {[%clk 00:03:53]} {[%emt 00:00:09]} 28. Bc2 {[%clk 00:01:35]} {[%emt
00:00:06]} c4 {[%clk 00:03:31]} {[%emt 00:00:33]} 29. Qb4 {[%clk 00:01:32]}
{[%emt 00:00:12]} Bf8 {[%clk 00:03:35]} {[%emt 00:00:06]} 30. Na3 {[%clk
00:01:41]} {[%emt 00:00:01]} Rc7 {[%clk 00:03:34]} {[%emt 00:00:12]} 31. Kb2
{[%clk 00:01:46]} {[%emt 00:00:04]} Rac8 {[%clk 00:03:25]} {[%emt 00:00:19]} 32.
Bc3 {[%clk 00:01:45]} {[%emt 00:00:11]} Nd7 {[%clk 00:03:34]} {[%emt 00:00:02]}
33. Nf1 {[%clk 00:01:39]} {[%emt 00:00:16]} Nc5 {[%clk 00:03:26]} {[%emt
00:00:19]} 34. Nd2 {[%clk 00:00:45]} {[%emt 00:01:03]} Nd3+ {[%clk 00:02:48]}
{[%emt 00:00:48]} 35. Bxd3 {[%clk 00:00:51]} {[%emt 00:00:03]} cxd3 {[%clk
00:02:57]} {[%emt 00:00:01]} 36. Rc1 {[%clk 00:00:59]} {[%emt 00:00:03]} Bg6
{[%clk 00:02:47]} {[%emt 00:00:21]} 37. Rhd1 {[%clk 00:00:50]} {[%emt
00:00:18]} Ra8 {[%clk 00:02:55]} {[%emt 00:00:02]} 38. Ndc4 {[%clk 00:00:45]}
{[%emt 00:00:15]} Nf6 {[%clk 00:02:44]} {[%emt 00:00:22]} 39. Rxd3 {[%clk
00:00:48]} {[%emt 00:00:07]} Qb8 {[%clk 00:02:13]} {[%emt 00:00:41]} 40. Be1
{[%clk 00:00:54]} {[%emt 00:00:04]} Rca7 {[%clk 00:02:20]} {[%emt 00:00:03]} 41.
Kb3 {[%clk 00:00:45]} {[%emt 00:00:19]} Rxa4 {[%clk 00:01:57]} {[%emt
00:00:33]} 42. Qxa4 {[%clk 00:00:38]} {[%emt 00:00:17]} Rxa4 {[%clk 00:02:06]}
43. Kxa4 {[%clk 00:00:46]} {[%emt 00:00:01]} Bxe4 {[%clk 00:01:50]} {[%emt
00:00:26]} 44. fxe4 {[%clk 00:00:50]} {[%emt 00:00:06]} Nxe4 {[%clk 00:01:59]}
45. Bb4 {[%clk 00:00:52]} {[%emt 00:00:08]} Nf6 {[%clk 00:01:52]} {[%emt
00:00:17]} 46. Rh1 {[%clk 00:00:55]} {[%emt 00:00:06]} Nxd5 {[%clk 00:01:46]}
{[%emt 00:00:16]} 47. Rdh3 {[%clk 00:00:57]} {[%emt 00:00:08]} Bg7 {[%clk
00:01:54]} {[%emt 00:00:02]} 48. Bxd6 {[%clk 00:00:57]} {[%emt 00:00:10]} Qa8+
{[%clk 00:01:35]} {[%emt 00:00:29]} 49. Kb3 {[%clk 00:01:04]} {[%emt 00:00:02]}
e4 {[%clk 00:01:35]} {[%emt 00:00:10]} 50. Be5 {[%clk 00:00:50]} {[%emt
00:00:24]} Nf6 {[%clk 00:01:30]} {[%emt 00:00:15]} 51. Nd6 {[%clk 00:00:34]}
{[%emt 00:00:26]} Qd5+ {[%clk 00:01:35]} {[%emt 00:00:05]} 52. Ndc4 {[%clk
00:00:39]} {[%emt 00:00:04]} f3 {[%clk 00:01:34]} {[%emt 00:00:11]} 53. Bxf6
{[%clk 00:00:25]} {[%emt 00:00:23]} Bxf6 {[%clk 00:01:43]} {[%emt 00:00:02]} 54.
Rh6 {[%clk 00:00:33]} {[%emt 00:00:02]} Bg7 {[%clk 00:01:08]} {[%emt 00:00:45]}
55. Rxb6 {[%clk 00:00:41]} {[%emt 00:00:03]} e3 {[%clk 00:01:17]} 56. Rd6
{[%clk 00:00:39]} {[%emt 00:00:11]} Qf7 {[%clk 00:01:25]} {[%emt 00:00:02]} 57.
Ka4 {[%clk 00:00:18]} {[%emt 00:00:31]} f2 {[%clk 00:01:14]} {[%emt 00:00:21]}
58. Rd8+ {[%clk 00:00:22]} {[%emt 00:00:06]} Bf8 {[%clk 00:01:23]} {[%emt
00:00:01]} 59. Nxe3 {[%clk 00:00:27]} {[%emt 00:00:05]} Qa7+ {[%clk 00:01:27]}
{[%emt 00:00:07]} 60. Kb3 {[%clk 00:00:31]} {[%emt 00:00:06]} Qxe3+ {[%clk
00:01:36]} {[%emt 00:00:01]} 61. Kc4 {[%clk 00:00:19]} {[%emt 00:00:21]} Qe4+
{[%clk 00:01:43]} {[%emt 00:00:02]} 0-1